bitfinex/quotes_SOLUSD_20241121
["timestamp","ask_amount","ask_price","bid_price","bid_amount"]
[1732180312201,162.3,242.34,242.29,24.54104351]
[1732180312517,162.3,242.34,242.3,3.14984066]
[1732180312695,162.3,242.34,242.3,23.14984066]
[1732180312895,162.3,242.34,242.3,20.0]
[1732180313090,162.3,242.34,242.29,4.54104351]
[1732180313324,162.3,242.34,242.29,24.54104351]
[1732180313619,162.3,242.34,242.31,20.0]
[1732180314294,162.3,242.33,242.32,30.26641967]
[1732180317407,0.5,242.42,242.33,20.0]
[1732180317604,162.3,242.41,242.33,20.0]
[1732180317801,162.3,242.41,242.33,25.47214666]
[1732180318124,162.3,242.41,242.33,30.26641967]
[1732180318329,162.3,242.41,242.34,4.79427301]
[1732180318629,162.3,242.41,242.35,20.0]
[1732180322210,162.3,242.4,242.35,20.0]
[1732180322832,162.3,242.39,242.35,20.0]
[1732180323711,162.3,242.39,242.34,10.26641967]
[1732180323919,157.75895649,242.31,242.25,5.47214666]
[1732180324118,157.75895649,242.3,242.26,3.15247691]
[1732180324307,157.75895649,242.38,242.27,3.15247691]
[1732180324629,157.75895649,242.37,242.28,6.26329347]
[1732180324828,157.75895649,242.37,242.29,13.41889658]
[1732180325006,157.75895649,242.37,242.3,26.26329347]
[1732180325433,157.75895649,242.37,242.31,33.41889658]
[1732180325615,157.75895649,242.37,242.32,23.15247691]
[1732180325935,157.75895649,242.36,242.34,20.0]
[1732180326113,157.75895649,242.36,242.35,5.47214666]
[1732180326314,157.75895649,242.36,242.35,30.26641967]
[1732180327509,15.18052308,242.46,242.36,20.0]
[1732180327708,162.3,242.45,242.37,5.47214666]
[1732180328210,162.3,242.45,242.38,20.0]
[1732180328538,162.3,242.45,242.38,25.47214666]
[1732180329410,162.3,242.45,242.39,5.47214666]
[1732180330230,162.3,242.44,242.4,20.0]
[1732180330407,162.3,242.44,242.41,5.47214666]
[1732180330607,0.5,242.5,242.41,5.47214666]
[1732180330608,162.3,242.43,242.41,5.47214666]
[1732180332107,59.98015879,242.53,242.41,10.26641967]
[1732180332108,162.3,242.42,242.41,10.26641967]
[1732180335418,9.39071947,242.48,242.41,10.26641967]
[1732180336033,9.39071947,242.5,242.41,10.26641967]
[1732180336237,162.8,242.49,242.41,10.26641967]
[1732180336528,9.39071947,242.48,242.41,10.26641967]
[1732180337134,162.8,242.49,242.41,10.26641967]
[1732180337427,9.39071947,242.48,242.41,10.26641967]
[1732180337631,162.3,242.47,242.41,10.26641967]
[1732180338445,162.3,242.47,242.42,24.79427301]
[1732180338635,162.3,242.47,242.43,5.71770221]
[1732180340441,162.3,242.47,242.44,4.79427301]
[1732180340626,162.3,242.47,242.45,5.71770221]
[1732180341342,162.3,242.46,242.45,5.71770221]
[1732180343645,68.87087826,242.53,242.45,13.62279178]
[1732180343945,9.39071947,242.51,242.46,5.07593968]
[1732180344240,162.3,242.5,242.47,5.71770221]
[1732180344732,9.39071947,242.49,242.47,5.71770221]
[1732180345127,148.39554155,242.43,242.26,0.5]
[1732180345438,148.39554155,242.42,242.33,20.0]
[1732180345640,148.39554155,242.41,242.35,20.0]
[1732180345841,148.39554155,242.41,242.36,5.30475706]
[1732180346144,148.39554155,242.41,242.37,20.0]
[1732180346321,148.39554155,242.41,242.39,20.0]
[1732180346521,148.39554155,242.4,242.39,20.0]
[1732180346829,143.09078449,242.4,242.39,20.0]
[1732180347138,143.09078449,242.4,242.39,4.92163571]
[1732180347530,143.09078449,242.4,242.39,27.98917254]
[1732180348517,0.5,242.34,242.19,6.38350239]
[1732180348722,9.39071947,242.3,242.2,3.16202893]
[1732180348943,9.39071947,242.3,242.1,3.16202893]
[1732180349139,9.39071947,242.28,242.1,3.16202893]
[1732180349454,9.39071947,242.28,242.11,3.16202893]
[1732180349653,9.39071947,242.28,242.12,3.16202893]
[1732180349824,162.3,242.29,242.12,3.16202893]
[1732180350168,9.39071947,242.28,242.12,3.06753683]
[1732180350639,14.70083217,242.28,242.12,3.06753683]
[1732180351224,162.3,242.29,242.12,3.06753683]
[1732180351552,162.3,242.29,242.12,6.6585499]
[1732180351919,162.3,242.29,242.13,20.0]
[1732180352744,162.3,242.29,242.12,3.59101307]
[1732180353444,162.3,242.28,242.12,3.59101307]
[1732180354029,162.3,242.27,242.12,3.59101307]
[1732180354850,162.3,242.27,242.09,0.5]
[1732180355344,162.3,242.27,242.08,20.0]
[1732180355649,162.3,242.27,242.09,0.5]
[1732180355863,162.3,242.27,242.08,20.0]
[1732180356153,162.3,242.27,242.08,0.5]
[1732180356728,162.3,242.27,242.07,4.09101307]
[1732180356950,14.70083217,242.25,242.02,7.38350239]
[1732180357247,162.3,242.24,242.02,1.0]
[1732180357437,177.00083217,242.23,242.02,0.5]
[1732180358251,162.3,242.23,242.02,0.5]
[1732180358445,162.3,242.23,242.0,4.09101307]
[1732180358642,0.5,242.2,242.0,4.5355231]
[1732180358843,177.00083217,242.19,242.0,0.94451003]
[1732180359147,162.3,242.18,242.0,0.94451003]
[1732180359336,177.00083217,242.17,242.0,0.94451003]
[1732180359531,14.70083217,242.15,241.92,3.59101307]
[1732180359738,162.3,242.14,241.92,3.59101307]
[1732180360037,162.3,242.13,241.92,3.59101307]
[1732180360350,162.3,242.13,241.93,0.5]
[1732180360759,162.3,242.12,241.93,0.5]
[1732180360959,162.3,242.11,241.92,3.59101307]
[1732180361457,162.3,242.1,241.94,20.0]
[1732180361642,14.70083217,242.15,241.91,0.5]
[1732180361643,162.3,242.09,241.97,23.776884]
[1732180361848,162.3,242.09,241.98,20.0]
[1732180362030,162.3,242.09,242.0,20.0]
[1732180362234,162.3,242.08,242.0,20.0]
[1732180362656,162.3,242.07,242.0,20.0]
[1732180362837,162.3,242.06,242.0,20.0]
[1732180363154,162.3,242.06,242.03,23.776884]
[1732180363338,162.3,242.06,242.04,20.0]
[1732180363662,86.14136626,242.19,242.05,23.776884]
[1732180363835,86.14136626,242.18,242.07,23.776884]
[1732180364034,86.14136626,242.18,242.08,20.0]
[1732180366455,86.14136626,242.18,241.98,0.5]
[1732180366668,86.14136626,242.17,241.98,0.5]
[1732180366837,86.14136626,242.17,241.99,20.0]
[1732180367156,86.14136626,242.17,242.02,23.776884]
[1732180367343,86.14136626,242.17,242.03,20.0]
[1732180367542,86.14136626,242.16,242.05,20.0]
[1732180368137,86.14136626,242.16,241.98,0.5]
[1732180368464,86.14136626,242.15,241.98,0.5]
[1732180369170,86.14136626,242.15,241.96,0.5]
[1732180369663,86.14136626,242.15,242.0,23.776884]
[1732180369838,86.14136626,242.15,242.01,20.0]
[1732180370156,86.14136626,242.15,242.03,20.0]
[1732180370360,86.14136626,242.14,242.03,20.0]
[1732180373452,86.14136626,242.14,242.05,20.0]
[1732180374566,86.14136626,242.13,242.05,20.0]
[1732180375350,86.14136626,242.13,241.96,0.5]
[1732180375549,86.14136626,242.12,241.97,20.0]
[1732180376158,86.14136626,242.12,242.0,23.776884]
[1732180376352,86.14136626,242.12,242.02,23.776884]
[1732180376556,86.14136626,242.11,242.03,20.0]
[1732180380387,86.14136626,242.1,242.03,20.0]
[1732180380668,86.14136626,242.1,241.94,24.276884]
[1732180380875,86.14136626,242.09,241.97,20.0]
[1732180381056,86.14136626,242.09,241.99,20.0]
[1732180381249,86.14136626,242.08,241.88,0.5]
[1732180381573,86.14136626,242.07,241.9,0.5]
[1732180381773,86.14136626,242.06,241.9,0.5]
[1732180382269,86.14136626,242.06,241.87,4.09101307]
[1732180384263,86.14136626,242.05,241.87,4.09101307]
[1732180384483,86.14136626,242.05,241.87,3.59101307]
[1732180385368,86.14136626,242.05,241.85,0.5]
[1732180385765,0.5,242.12,241.83,23.776884]
[1732180385766,86.14136626,242.04,241.86,20.0]
[1732180385965,86.14136626,242.04,241.83,0.5]
[1732180386172,86.14136626,242.03,241.85,0.5]
[1732180386374,86.14136626,242.03,241.83,0.5]
[1732180386855,86.14136626,242.03,241.83,4.616]
[1732180387056,86.14136626,242.03,241.84,27.892884]
[1732180387258,86.14136626,242.03,241.88,24.116]
[1732180387456,86.14136626,242.02,241.91,23.776884]
[1732180387661,86.14136626,242.02,241.92,20.0]
[1732180388158,86.14136626,242.02,241.9,20.0]
[1732180388549,86.14136626,242.02,241.85,0.5]
[1732180388550,86.14136626,242.02,241.92,20.0]
[1732180389355,86.14136626,242.01,241.84,27.892884]
[1732180389557,86.14136626,242.01,241.85,20.0]
[1732180389753,86.14136626,242.01,241.88,23.776884]
[1732180390180,86.14136626,242.01,241.89,20.0]
[1732180391478,86.14136626,242.01,241.9,23.776884]
[1732180391662,86.14136626,242.01,241.91,20.0]
[1732180392061,86.14136626,242.01,241.89,20.0]
[1732180392379,86.14136626,242.0,241.91,20.0]
[1732180394380,86.14136626,241.99,241.91,20.0]
[1732180394769,86.14136626,241.98,241.84,0.5]
[1732180394973,76.14136626,241.97,241.87,20.0]
[1732180395280,76.14136626,241.97,241.91,20.0]
[1732180395461,76.14136626,241.96,241.91,20.0]
[1732180396979,76.14136626,241.95,241.78,18.72214787]
[1732180397282,23.776884,241.93,241.77,1.25522123]
[1732180397500,23.776884,241.91,241.78,4.116]
[1732180397862,23.776884,241.91,241.77,0.62010394]
[1732180398083,12.2275,241.9,241.77,0.62010394]
[1732180398268,76.14136626,241.89,241.77,0.62010394]
[1732180398470,76.14136626,241.89,241.77,4.73610394]
[1732180398883,7.83600578,241.88,241.77,8.06776606]
[1732180399090,23.776884,241.97,241.79,74.116]
[1732180399299,23.776884,241.95,241.81,4.116]
[1732180399790,50.443484,241.97,241.81,4.116]
[1732180399964,23.776884,241.95,241.81,4.116]
[1732180400584,23.776884,241.97,241.8,10.7827]
[1732180400880,23.776884,241.95,241.81,4.116]
[1732180401362,23.776884,241.97,241.73,19.83832312]
[1732180401690,23.776884,241.95,241.74,27.72857468]
[1732180401891,0.62001397,241.94,241.75,70.0]
[1732180402087,186.076884,241.93,241.76,0.62010113]
[1732180402899,186.076884,241.93,241.76,4.73610113]
[1732180403468,186.076884,241.93,241.76,24.73610113]
[1732180404381,186.076884,241.93,241.76,20.62010113]
[1732180405294,186.076884,241.93,241.77,24.116]
[1732180405590,186.076884,241.93,241.78,0.62010003]
[1732180405785,23.776884,241.91,241.78,0.62010003]
[1732180409993,24.39689797,241.91,241.78,0.62010003]
[1732180410202,24.39689797,241.91,241.75,20.0]
[1732180410498,23.776884,241.89,241.74,20.62017623]
[1732180410692,24.39689797,241.89,241.74,0.62017623]
[1732180410891,162.3,241.88,241.74,0.62017623]
[1732180411077,23.776884,241.86,241.74,0.62017623]
[1732180411400,23.776884,241.86,241.74,6.38350239]
[1732180411896,23.776884,241.86,241.75,4.116]
[1732180412097,23.776884,241.86,241.75,24.116]
[1732180412408,23.776884,241.86,241.75,4.116]
[1732180412779,23.776884,241.86,241.73,4.116]
[1732180414989,162.3,241.85,241.73,10.49950239]
[1732180415191,162.3,241.85,241.75,4.116]
[1732180416196,162.3,241.85,241.74,4.116]
[1732180419500,162.3,241.84,241.74,4.116]
[1732180422585,162.3,241.83,241.73,4.116]
[1732180422809,162.3,241.82,241.73,4.116]
[1732180423681,116.60902916,241.85,241.74,4.116]
[1732180424704,116.60902916,241.85,241.71,4.73623916]
[1732180426382,116.60902916,241.85,241.76,4.116]
[1732180426589,48.30366868,241.9,241.76,4.08715551]
[1732180426789,48.30366868,241.89,241.76,4.08715551]
[1732180427603,48.30366868,241.89,241.77,24.116]
[1732180427811,48.30366868,241.89,241.78,0.62011035]
[1732180428686,48.30366868,241.88,241.77,20.0]
[1732180429405,48.30366868,241.88,241.74,20.62016035]
[1732180429610,48.30366868,241.88,241.75,4.116]
[1732180432409,48.92368265,241.87,241.74,0.62016035]
[1732180432604,48.92368265,241.87,241.72,0.62023347]
[1732180433108,48.30366868,241.87,241.72,0.62023347]
[1732180433303,48.30366868,241.87,241.72,4.73623347]
[1732180434616,48.30366868,241.87,241.73,3.46695859]
[1732180434795,48.30366868,241.87,241.74,4.73617443]
[1732180434998,48.30366868,241.87,241.74,24.73617443]
[1732180436095,48.30366868,241.87,241.75,24.116]
[1732180436600,48.30366868,241.87,241.75,26.38350239]
[1732180436913,48.30366868,241.87,241.75,20.0]
[1732180437110,48.30366868,241.87,241.76,24.116]
[1732180437506,48.30366868,241.86,241.76,24.116]
[1732180437903,0.5,241.94,241.77,0.62016915]
[1732180438100,162.92001397,241.93,241.77,4.73616915]
[1732180438297,162.3,241.93,241.77,24.73616915]
[1732180438918,0.62001397,241.92,241.77,24.73616915]
[1732180439118,162.3,241.93,241.77,24.73616915]
[1732180439317,0.62001397,241.92,241.77,24.73616915]
[1732180440119,23.776884,241.91,241.77,24.73616915]
[1732180440299,0.62001397,241.9,241.74,24.73617984]
[1732180440505,0.62001397,241.9,241.74,4.73617984]
[1732180441105,23.776884,241.89,241.74,4.116]
[1732180441307,0.62001397,241.88,241.72,4.73622282]
[1732180441621,23.776884,241.89,241.72,4.73622282]
[1732180441818,23.776884,241.87,241.7,84.32836653]
[1732180442022,162.92001397,241.86,241.7,77.94486414]
[1732180442218,162.3,241.86,241.7,77.94486414]
[1732180443124,162.3,241.86,241.72,4.116]
[1732180443296,162.3,241.86,241.71,20.0]
[1732180443494,23.776884,241.84,241.7,20.0]
[1732180443703,0.62001397,241.83,241.65,20.0]
[1732180443900,162.3,241.82,241.64,103.3095]
[1732180444326,162.3,241.82,241.66,16.513323]
[1732180444514,162.3,241.82,241.67,4.116]
[1732180445208,162.3,241.82,241.67,24.116]
[1732180445515,162.3,241.82,241.7,20.0]
[1732180445717,162.3,241.88,241.71,27.60574814]
[1732180445912,162.3,241.87,241.72,0.62018607]
[1732180446114,162.3,241.87,241.72,20.62018607]
[1732180446523,162.3,241.87,241.73,4.116]
[1732180448824,162.3,241.87,241.75,24.116]
[1732180448999,93.99463952,241.92,241.79,24.116]
[1732180449208,93.99463952,241.97,241.81,4.116]
[1732180449407,94.61465349,241.96,241.82,0.61999872]
[1732180449625,93.99463952,241.96,241.81,24.116]
[1732180449921,0.62001397,241.95,241.81,4.16830859]
[1732180450223,24.776884,241.94,241.8,20.0]
[1732180450424,0.62001397,241.93,241.8,20.0]
[1732180450729,23.776884,241.92,241.76,4.116]
[1732180450902,94.61465349,241.91,241.76,4.116]
[1732180451103,93.99463952,241.91,241.75,4.116]
[1732180451305,0.62001397,241.9,241.75,4.116]
[1732180451608,93.99463952,241.89,241.75,4.116]
[1732180452015,0.62001397,241.88,241.75,4.116]
[1732180454637,23.776884,241.87,241.74,20.0]
[1732180454806,94.61465349,241.86,241.74,20.0]
[1732180455003,117.77152352,241.85,241.75,1.65045051]
[1732180455206,0.62001397,241.84,241.76,1.65045051]
[1732180455417,0.62001397,241.84,241.77,1.65045051]
[1732180455606,0.62001397,241.84,241.73,4.16830859]
[1732180455607,0.62001397,241.84,241.78,1.65045051]
[1732180455923,0.62001397,241.84,241.73,4.16830859]
[1732180456126,0.62001397,241.84,241.74,1.6505588]
[1732180456313,23.776884,241.84,241.73,4.16830859]
[1732180456515,24.39689797,241.84,241.74,21.65057364]
[1732180456719,93.99463952,241.85,241.75,1.65057364]
[1732180456921,93.99463952,241.85,241.74,20.0]
[1732180457239,93.99463952,241.85,241.74,4.16830859]
[1732180457532,93.99463952,241.85,241.75,24.125]
[1732180457928,93.99463952,241.85,241.75,20.0]
[1732180458114,93.99463952,241.85,241.74,4.16830859]
[1732180458509,93.99463952,241.84,241.75,24.125]
[1732180460732,93.99463952,241.84,241.75,20.0]
[1732180461320,0.62001397,241.83,241.75,20.0]
[1732180461519,93.99463952,241.82,241.72,24.125]
[1732180461831,93.99463952,241.81,241.72,24.125]
[1732180462632,93.99463952,241.8,241.7,24.125]
[1732180463309,93.99463952,241.8,241.72,4.125]
[1732180463714,25.68927904,241.79,241.73,24.125]
[1732180464018,24.276884,241.85,241.73,8.29330859]
[1732180464223,0.62001397,241.84,241.74,24.125]
[1732180465026,24.276884,241.83,241.75,21.65062135]
[1732180465313,24.276884,241.81,241.76,1.65062135]
[1732180465518,0.62001397,241.8,241.76,1.65062135]
[1732180466018,0.62001397,241.8,241.7,20.0]
[1732180466232,0.62001397,241.8,241.71,1.65062135]
[1732180466429,0.62001397,241.8,241.72,1.65062135]
[1732180466634,0.62001397,241.8,241.7,1.65062135]
[1732180466941,0.62001397,241.8,241.68,4.125]
[1732180466942,0.62001397,241.8,241.71,5.77600043]
[1732180467124,0.62001397,241.8,241.72,1.65100043]
[1732180467326,0.62001397,241.8,241.61,0.62043408]
[1732180467327,0.5,241.77,241.71,1.65100043]
[1732180467526,0.62001397,241.76,241.63,4.16830859]
[1732180467726,162.3,241.75,241.64,1.65100043]
[1732180467934,162.3,241.75,241.65,1.65100043]
[1732180468124,162.3,241.75,241.66,1.65100043]
[1732180468435,0.5,241.73,241.67,1.65100043]
[1732180468740,0.62001397,241.72,241.65,1.65100043]
[1732180469423,0.62001397,241.72,241.64,4.16830859]
[1732180469735,23.776884,241.72,241.64,4.16830859]
[1732180469914,23.776884,241.72,241.61,1.65100043]
[1732180469915,0.62001397,241.71,241.62,1.65100043]
[1732180470119,23.776884,241.72,241.61,5.81930902]
[1732180470337,24.39689797,241.72,241.61,4.16830859]
[1732180470541,24.39689797,241.72,241.62,20.0]
[1732180470716,24.39689797,241.72,241.63,1.65100043]
[1732180472134,0.62001397,241.72,241.63,1.65100043]
[1732180472939,162.3,241.73,241.63,5.81930902]
[1732180473253,162.3,241.73,241.64,24.16830859]
[1732180473433,0.62001397,241.72,241.65,1.65100043]
[1732180473623,162.92001397,241.72,241.66,20.0]
[1732180473818,162.3,241.72,241.66,20.0]
[1732180474223,162.3,241.72,241.66,24.48608636]
[1732180474719,162.3,241.72,241.66,4.48608636]
[1732180475635,162.3,241.72,241.67,20.0]
[1732180475820,0.5,241.73,241.67,20.0]
[1732180476021,0.62001397,241.72,241.67,20.0]
[1732180476237,0.62001397,241.72,241.66,4.48608636]
[1732180477022,0.62001397,241.72,241.67,20.0]
[1732180477529,0.62001397,241.72,241.66,4.48608636]
[1732180478040,0.5,241.75,241.66,4.48608636]
[1732180478240,0.62001397,241.75,241.67,20.0]
[1732180478538,0.62001397,241.75,241.68,4.48608636]
[1732180479538,162.3,241.74,241.68,24.48608636]
[1732180480346,162.3,241.74,241.68,4.48608636]
[1732180482546,162.3,241.73,241.68,4.48608636]
[1732180485549,162.3,241.72,241.68,4.48608636]
[1732180485738,162.3,241.72,241.69,20.0]
[1732180485933,93.99463952,241.75,241.7,4.48608636]
[1732180486141,93.99463952,241.75,241.69,20.0]
[1732180486325,94.49463952,241.75,241.64,4.48608636]
[1732180486725,94.49463952,241.75,241.65,24.125]
[1732180486929,93.99463952,241.75,241.66,21.65139607]
[1732180487137,94.49463952,241.75,241.66,20.0]
[1732180487450,94.49463952,241.75,241.65,24.125]
[1732180487655,1.62001397,241.74,241.66,1.65140395]
[1732180488335,1.62001397,241.74,241.64,4.48608636]
[1732180488935,1.62001397,241.74,241.64,24.48608636]
[1732180489139,1.62001397,241.74,241.65,20.0]
[1732180489447,0.5,241.72,241.65,20.0]
[1732180489748,1.0,241.72,241.64,4.48608636]
[1732180489945,0.62001397,241.71,241.64,4.48608636]
[1732180490149,0.5,241.7,241.64,4.48608636]
[1732180490342,93.99463952,241.69,241.64,4.48608636]
[1732180490648,0.62001397,241.68,241.64,24.48608636]
[1732180490857,1.12001397,241.68,241.64,4.48608636]
[1732180491053,1.12001397,241.68,241.55,42.5866]
[1732180491237,93.99463952,241.67,241.56,7.78949142]
[1732180491437,0.62001397,241.66,241.56,7.78949142]
[1732180491857,0.62001397,241.66,241.56,11.91449142]
[1732180492052,0.62001397,241.66,241.56,10.26278721]
[1732180492258,0.62001397,241.66,241.57,20.0]
[1732180492556,0.62001397,241.66,241.58,6.13785936]
[1732180492737,0.62001397,241.66,241.58,4.48608636]
[1732180493457,93.99463952,241.67,241.58,4.48608636]
[1732180493856,93.99463952,241.67,241.59,20.0]
[1732180494158,93.99463952,241.67,241.58,6.13785936]
[1732180494159,93.99463952,241.67,241.58,4.48608636]
[1732180494357,93.99463952,241.67,241.59,4.48608636]
[1732180494566,1.0,241.68,241.59,24.48608636]
[1732180494567,93.99463952,241.66,241.59,24.48608636]
[1732180494733,93.99463952,241.66,241.6,24.48608636]
[1732180494934,93.99463952,241.65,241.6,24.48608636]
[1732180495362,25.68927904,241.67,241.61,21.65179259]
[1732180495657,25.68927904,241.67,241.63,20.0]
[1732180495842,25.68927904,241.67,241.62,4.48608636]
[1732180496759,25.68927904,241.67,241.63,20.0]
[1732180497632,25.68927904,241.67,241.62,4.48608636]
[1732180498258,25.68927904,241.67,241.62,24.48608636]
[1732180498931,25.68927904,241.67,241.62,4.48608636]
[1732180499767,25.68927904,241.67,241.66,9.44480693]
[1732180500052,0.5,241.68,241.67,20.0]
[1732180500256,0.5,241.7,241.67,67.22403465]
[1732180500447,0.5,241.72,241.7,20.0]
[1732180500653,162.3,241.71,241.7,20.0]
[1732180501049,162.3,241.71,241.7,29.44480693]
[1732180502159,162.8,241.71,241.7,29.44480693]
[1732180502366,186.576884,241.71,241.7,29.44480693]
[1732180502667,186.576884,241.71,241.7,9.44480693]
[1732180503053,162.8,241.71,241.7,9.44480693]
[1732180503242,0.5,241.68,241.63,21.65173737]
[1732180503439,162.3,241.67,241.63,24.48608636]
[1732180503652,162.3,241.67,241.64,24.48608636]
[1732180504159,162.3,241.67,241.64,4.48608636]
[1732180504661,93.99463952,241.67,241.66,67.22403465]
[1732180504861,93.99463952,241.67,241.66,71.71012101]
[1732180505241,93.99463952,241.67,241.66,73.36166659]
[1732180506061,75.8520276,241.79,241.67,20.0]
[1732180506356,75.8520276,241.78,241.68,43.91685966]
[1732180506555,75.8520276,241.78,241.77,29.44480693]
[1732180506871,1.0,241.8,241.78,20.0]
[1732180507050,1.0,241.8,241.79,29.44480693]
[1732180510151,0.5,241.76,241.72,3.54992268]
[1732180510360,159.5,241.75,241.72,3.54992268]
[1732180510548,0.62001397,241.74,241.72,3.54992268]
[1732180511468,0.62001397,241.74,241.73,9.44480693]
[1732180511657,1.12001397,241.74,241.73,29.44480693]
[1732180511853,1.12001397,241.74,241.73,9.44480693]
[1732180514969,149.55519307,241.72,241.7,1.65156372]
[1732180515172,149.55519307,241.72,241.71,31.09637065]
[1732180515365,149.55519307,241.72,241.71,35.65276567]
[1732180518153,149.55519307,241.72,241.71,35.6525694]
[1732180518865,1.0,241.74,241.72,20.0]
[1732180519072,0.5,241.74,241.73,29.44480693]
[1732180519453,1.0,241.74,241.73,29.44480693]
[1732180520572,0.5,241.74,241.73,29.44480693]
[1732180520750,1.0,241.74,241.73,29.44480693]
[1732180521072,0.62001397,241.84,241.73,29.44480693]
[1732180521073,1.0,241.76,241.74,20.0]
[1732180521275,0.5,241.78,241.76,20.0]
[1732180521481,1.0,241.82,241.78,20.0]
[1732180521677,0.5,241.85,241.82,20.0]
[1732180521976,0.5,241.84,241.83,1.65057398]
[1732180522275,0.5,241.84,241.83,31.09538091]
[1732180523090,0.5,241.84,241.69,43.776884]
[1732180523091,0.5,241.8,241.69,43.776884]
[1732180523263,0.5,241.8,241.71,20.0]
[1732180523465,0.5,241.78,241.72,6.20737484]
[1732180523764,0.5,241.78,241.73,21.65097982]
[1732180523964,0.5,241.78,241.74,1.65097982]
[1732180524163,0.5,241.78,241.77,29.44480693]
[1732180524556,1.0,241.78,241.77,29.44480693]
[1732180524761,1.0,241.78,241.77,9.44480693]
[1732180525066,1.0,241.78,241.77,29.44480693]
[1732180525860,1.0,241.78,241.77,9.44480693]
[1732180526678,0.5,241.76,241.75,9.44480693]
[1732180526891,1.62001397,241.76,241.75,9.44480693]
[1732180527188,1.0,241.76,241.75,9.44480693]
[1732180529076,151.5,241.76,241.75,9.44480693]
[1732180529668,175.276884,241.76,241.72,4.55639502]
[1732180529870,0.62001397,241.75,241.72,4.55639502]
[1732180530176,1.0,241.73,241.72,4.55639502]
[1732180530567,24.776884,241.73,241.72,4.55639502]
[1732180530779,1.0,241.73,241.72,4.55639502]
[1732180531182,1.0,241.73,241.72,14.00120195]
[1732180532580,1.0,241.73,241.72,9.44480693]
[1732180533772,141.55519307,241.71,241.7,4.55639502]
[1732180533973,141.55519307,241.71,241.7,14.00120195]
[1732180534163,141.55519307,241.71,241.7,34.00120195]
[1732180534604,142.05519307,241.71,241.7,34.00120195]
[1732180536674,1.0,241.71,241.7,34.00120195]
[1732180539194,1.0,241.71,241.7,4.55639502]
[1732180539486,1.0,241.71,241.7,34.00120195]
[1732180541789,23.39689797,241.76,241.7,34.00120195]
[1732180541982,23.39689797,241.76,241.71,20.0]
[1732180542795,23.39689797,241.76,241.72,9.44480693]
[1732180543677,23.39689797,241.76,241.57,0.62065577]
[1732180543678,128.09879805,241.7,241.58,20.0]
[1732180543882,115.69879805,241.69,241.6,20.0]
[1732180544074,115.69879805,241.69,241.62,20.0]
[1732180544390,115.69879805,241.69,241.63,6.17497206]
[1732180544690,115.69879805,241.68,241.64,1.6515389]
[1732180544894,115.69879805,241.68,241.67,29.44480693]
[1732180545090,115.69879805,241.68,241.67,73.39900671]
[1732180545664,115.69879805,241.68,241.67,71.74746781]
[1732180545884,115.69879805,241.68,241.67,73.39897996]
[1732180546781,115.69879805,241.68,241.67,33.96824009]
[1732180547875,115.69879805,241.68,241.67,35.61975516]
[1732180548681,23.776884,241.78,241.68,20.0]
[1732180548886,129.7,241.77,241.72,9.44480693]
[1732180550795,129.7,241.77,241.74,9.44480693]
[1732180550994,120.25519307,241.72,241.69,20.0]
[1732180551179,111.85519307,241.71,241.69,20.0]
[1732180551380,111.85519307,241.71,241.68,4.54365538]
[1732180551573,111.85519307,241.71,241.7,9.44480693]
[1732180551770,111.85519307,241.71,241.7,29.44480693]
[1732180552996,111.85519307,241.71,241.68,4.54365538]
[1732180553180,111.85519307,241.71,241.7,29.44480693]
[1732180553974,111.85519307,241.71,241.7,31.09632835]
[1732180554773,23.776884,241.8,241.71,20.0]
[1732180555094,23.776884,241.78,241.72,9.44480693]
[1732180559795,23.776884,241.78,241.68,4.54365538]
[1732180559976,23.776884,241.78,241.72,9.44480693]
[1732180560499,23.776884,241.78,241.7,1.65151938]
[1732180560679,87.31153769,241.67,241.56,37.77922772]
[1732180560877,23.776884,241.78,241.56,37.77922772]
[1732180560878,57.01153769,241.66,241.57,26.48782518]